[Event "VII Totalizator Sportowy 2022"]
[Site "Bydgoszcz"]
[Date "2022.06.30"]
[Round "6.17"]
[White "Rudzinska, Michalina"]
[Black "Starosciak, Szymon"]
[Result "1-0"]
[ECO "B22"]
[WhiteElo "2236"]
[BlackElo "1901"]
[Annotator "NA RC"]
[PlyCount "107"]
[EventDate "2022.06.25"]
[EventType "swiss"]
[EventCountry "POL"]
[SourceTitle "playchess.com"]
[Source "ChessBase"]
[SourceQuality "1"]
[TimeControl "40/5400+30:1800+30"]

1. e4 {[%emt 0:00:01]} c5 {[%emt 0:00:08]} 2. c3 {[%emt 0:00:13]} Nf6 {[%emt 0:00:15]} 3. e5 {[%emt 0:00:07]} Nd5 {[%emt 0:00:05]} 4. Nf3 {[%emt 0:00:11]} Nc6 {[%emt 0:02:15]} 5. Bc4 {[%emt 0:00:11]} e6 {[%emt 0:01:06]} 6. d4 {[%emt 0:00:19]} cxd4 {[%emt 0:01:12]} 7. cxd4 {[%emt 0:00:08]} d6 {[%emt 0:00:35]} 8. O-O {[%emt 0:00:23]} Be7 {[%emt 0:00:36]} 9. Qe2 {[%emt 0:00:30]} O-O {[%emt 0:01:04]} 10. Qe4 {[%emt 0:00:40]} Bd7 {[%emt 0:02:39]} 11. Bb3 {[%emt 0:05:24]} Rc8 {[%emt 0:38:14]} 12. Nc3 {[%emt 0:01:17]} Ncb4 {[%emt 0:08:33]} 13. Bd2 {[%emt 0:43:12]} Bc6 {[%emt 0:05:20]} 14. Qg4 {[%emt 0:01:22]} Re8 {[%emt 0:08:58]} 15. a3 {[%emt 0:05:32]} Nxc3 {[%emt 0:01:07]} 16. bxc3 {[%emt 0:00:11]} Bxf3 {[%emt 0:01:23]} 17. Qxf3 {[%emt 0:00:10]} Nc6 {[%emt 0:00:18]} 18. exd6 {[%emt 0:03:10]} Bxd6 {[%emt 0:00:53]} 19. Rfe1 {[%emt 0:01:41]} Na5 {[%emt 0:04:02]} 20. Ba4 {[%emt 0:10:17]} Rf8 {[%emt 0:00:26]} 21. Bc2 {[%emt 0:03:32]} Nc4 {[%emt 0:01:27]} 22. Qh3 {[%emt 0:00:25]} g6 {[%emt 0:02:10]} 23. Bh6 {[%emt 0:00:41]} Nxa3 {[%emt 0:01:07]} 24. Be4 {[%emt 0:09:07]} Re8 {[%emt 0:02:23]} 25. Bxb7 {[%emt 0:00:16]} Nc2 {[%emt 0:02:14]} 26. Bxc8 {[%emt 0:02:16]} Qxc8 {[%emt 0:04:35]} 27. Qd3 {[%emt 0:03:00]} Nxa1 {[%emt 0:01:36]} 28. Rxa1 {[%emt 0:00:07]} Qc7 {[%emt 0:00:21]} 29. h4 {[%emt 0:01:23]} Rc8 {[%emt 0:01:42]} 30. Bd2 {[%emt 0:00:22]} Bf4 {[%emt 0:01:08]} 31. Be1 {[%emt 0:00:54]} Qb7 {[%emt 0:06:15]} 32. c4 {[%emt 0:01:39]} Qc6 {[%emt 0:01:17]} 33. c5 {[%emt 0:05:43]} Rc7 {[%emt 0:00:58]} 34. g3 {[%emt 0:00:57]} Bh6 {[%emt 0:00:03]} 35. Ra6 {[%emt 0:00:24]} Qb7 {[%emt 0:00:33]} 36. Rd6 {[%emt 0:01:23]} Bf8 {[%emt 0:00:14]} 37. Rd8 {[%emt 0:00:23]} Rd7 {[%emt 0:00:26]} 38. Rxd7 {[%emt 0:00:20]} Qxd7 {[%emt 0:00:04]} 39. Qe4 {[%emt 0:01:24]} Qc7 {[%emt 0:01:41]} 40. Qa8 {[%emt 0:00:00]} Kg7 {[%emt 0:00:00]} 41. Bd2 {[%emt 0:01:51]} Be7 {[%emt 0:10:35]} 42. Bf4 {[%emt 0:04:32]} Qa5 {[%emt 0:00:39]} 43. Qe4 {[%emt 0:04:48]} Kf8 {[%emt 0:04:20]} 44. Bh6+ {[%emt 0:02:56]} Ke8 {[%emt 0:00:25]} 45. Qc6+ {[%emt 0:00:08]} Kd8 {[%emt 0:00:19]} 46. Qa8+ {[%emt 0:00:06]} Kd7 {[%emt 0:00:35]} 47. c6+ {[%emt 0:00:09]} Kd6 {[%emt 0:00:38]} 48. Bf4+ {[%emt 0:00:07]} e5 {[%emt 0:00:16]} 49. Bxe5+ {[%emt 0:00:17]} Ke6 {[%emt 0:00:04]} 50. Qc8+ {[%emt 0:00:18]} Kd5 {[%emt 0:00:37]} 51. Qd7+ {[%emt 0:00:06]} Kc4 {[%emt 0:00:49]} 52. Qxe7 {[%emt 0:00:57]} Qe1+ {[%emt 0:00:07]} 53. Kg2 {[%emt 0:00:05]} Qe4+ {[%emt 0:00:05]} 54. Kh2 {[%emt 0:00:07]} 1-0

[Event "VII Totalizator Sportowy 2022"]
[Site "Bydgoszcz"]
[Date "2022.06.30"]
[Round "6.18"]
[White "Kulon, Klaudia"]
[Black "Dubnevych, Maksym"]
[Result "0-1"]
[ECO "A13"]
[WhiteElo "2305"]
[BlackElo "2048"]
[Annotator "TA"]
[PlyCount "80"]
[EventDate "2022.06.25"]
[EventType "swiss"]
[EventCountry "POL"]
[SourceTitle "playchess.com"]
[Source "ChessBase"]
[SourceQuality "1"]
[TimeControl "40/5400+30:1800+30"]

{[%evp 9,80,11,6,-11,0,-123,-126,-110,-116,-114,-98,-129,-110,-150,-159,-153,-142,-147,-155,-150,-141,-143,-129,-139,-130,-142,-114,-119,-133,-122,-29,-45,39,12,35,-55,71,42,153,52,34,13,19,-13,49,0,11,0,0,0,165,165,213,46,31,58,35,49,25,33,22,0,0,0,0,-460,0,-1585,-1057,-974,-937,-29994,-29995]} 1. c4 {[%emt 0:00:03]} e6 {[%emt 0:00:30]} 2. Nf3 {[%emt 0:02:07]} d5 {[%emt 0:00:08]} 3. e3 {[%emt 0:00:04]} Nf6 {[%emt 0:00:18]} 4. b3 {[%emt 0:00:04]} Be7 {[%emt 0:01:58]} 5. Bb2 {[%emt 0:00:04]} O-O {[%emt 0:00:06]} 6. Qc2 {A13: English Opening: 1...e6.} c5 {[%emt 0:02:58][%cal Bc7c5,Bc5d4][%mdl 32]} 7. Rg1 {[%emt 0:22:15]} (7. d4 $11) 7... Nc6 $17 {[%emt 0:06:32]} 8. g4 {[%emt 0:00:21] Black is better.} d4 {[%emt 0:26:22]} 9. g5 {[%emt 0:00:39]} Nb4 {[%emt 0:03:28]} 10. Qc1 {[%emt 0:03:16]} Ne4 {[%emt 0:01:45][%cal Re4g5]} 11. exd4 {[%emt 0:02:31]} cxd4 {[%emt 0:03:43]} 12. a3 {[%emt 0:02:02]} Nc6 {[%emt 0:01:45][%cal Re4g5] 0x0.001b6a20abffdp-1022s more active pieces.} 13. d3 {[%emt 0:01:58]} Nc5 {[%emt 0:00:05]} 14. Nbd2 {[%emt 0:00:08]} a5 {[%emt 0:00:06] Prevents b4.} 15. Qc2 {[%emt 0:02:05] [#]} Kh8 $146 {[%emt 0:08:05]} ({Predecessor:} 15... Rb8 16. Ne4 Nxe4 17. dxe4 e5 18. Bd3 Qc7 19. Bc1 Nd8 20. Bd2 Ne6 21. b4 Ra8 {0-1 (41) Hamitevici,V (2490)-Schitco,I (2416) Kishinev 2019}) 16. O-O-O {[%emt 0:02:27]} e5 {[%emt 0:03:19]} 17. Re1 {[%emt 0:00:58]} Qd6 {[%emt 0:01:14]} 18. Rg3 {[%emt 0:02:24]} f5 {[%emt 0:05:05]} 19. gxf6 {[%emt 0:00:18]} gxf6 {[%emt 0:00:05]} (19... Qxf6 $6 20. Nxe5 Nxe5 21. Bxd4 $11) (19... Bxf6 $17 20. Ne4 Nxe4 21. Rxe4 Bf5) 20. Ne4 $11 {[%emt 0:02:03]} Qc7 {[%emt 0:05:59]} (20... Nxe4 $15 21. Rxe4 f5) 21. Nxc5 $1 $14 {[%emt 0:01:50]} Bxc5 {[%emt 0:00:01]} 22. Kb1 {[%emt 0:00:10]} ({White should try} 22. Bg2 $14) 22... Qd6 {[%emt 0:04:08]} (22... a4 $1 $15 23. b4 Nxb4 24. axb4 Bxb4) 23. Qc1 {[%emt 0:00:05]} Be6 {[%emt 0:04:10]} (23... Ne7 $14) 24. Nd2 {[%emt 0:00:58]} (24. Qh6 $16 {[%csl Gg3][%cal Rh6g7]} Rf7 25. Nh4) 24... f5 {[%emt 0:00:31]} 25. f4 {[%emt 0:00:58]} exf4 {[%emt 0:00:43]} 26. Rh3 {[%emt 0:00:06]} Rae8 {[%emt 0:00:30]} ({Black should play} 26... Rf6 $1 $11) 27. Bg2 {[%emt 0:02:41]} (27. Nf3 $5 {[%cal Rf3g5]}) 27... Bf7 {[%emt 0:01:26]} 28. Bxc6 {[%emt 0:00:49]} bxc6 {[%emt 0:00:20]} ({Much less strong is} 28... Qxc6 29. Nf3 Rxe1 30. Qxe1 $14) 29. Nf3 {[%emt 0:00:04]} Bb6 $2 {[%emt 0:02:54]} (29... Bg6 $11 {and Black is okay.}) 30. Ng5 $18 {[%emt 0:02:25]} Bg6 {[%emt 0:03:27] [#]} (30... Rxe1 $142 31. Rxh7+ Kg8 32. Qxe1 c5 33. Nxf7 Rxf7) 31. Rxe8 $2 {[%emt 0:00:40]} (31. Rxh7+ $1 $18 {[%mdl 512]} Kg8 32. Rh6) 31... Rxe8 $14 {[%emt 0:00:08] [#]} 32. Rxh7+ $1 {[%emt 0:00:36]} Kg8 {[%emt 0:00:01]} 33. Rb7 {[%emt 0:03:50]} c5 {[%emt 0:09:39] Strongly threatening ...Qc6.} 34. Qh1 {[%emt 0:00:40] Against Qc6} Bd8 $1 {[%emt 0:01:38]} 35. Qg2 {[%emt 0:02:28]} (35. Nh3 $5 {[%cal Rb2c1]}) 35... Bxg5 36. Qxg5 {[%emt 0:00:02]} f3 {[%emt 0:04:00] ...f2 is the strong threat.} 37. Bc1 $2 {[%emt 0:00:28][%mdl 8192] [#]} (37. Qh6 $11 Qf6 38. Qf4) 37... Qc6 $2 (37... f4 $1 $19 38. Qg1 Qf6) 38. Qg3 {[%emt 0:00:40][%mdl 8192]} f2 {[%emt 0:01:44]} 39. Rc7 {[%emt 0:01:47]} f4 {[%emt 0:00:31]} 40. Qg5 {[%emt 0:00:00] [#]} f1=Q $1 {[%emt 0:00:00] What a fight!  Weighted Error Value: White=0.72/Black=0.51} 0-1

[Event "VII Totalizator Sportowy 2022"]
[Site "Bydgoszcz"]
[Date "2022.06.30"]
[Round "6.19"]
[White "Ratajczak, Hubert"]
[Black "Dzhuguryan, Tygran"]
[Result "1/2-1/2"]
[ECO "A22"]
[WhiteElo "1899"]
[BlackElo "2203"]
[Annotator "NA RC"]
[PlyCount "89"]
[EventDate "2022.06.25"]
[EventType "swiss"]
[EventCountry "POL"]
[SourceTitle "playchess.com"]
[Source "ChessBase"]
[SourceQuality "1"]
[TimeControl "40/5400+30:1800+30"]

1. c4 {[%emt 0:00:05]} Nf6 {[%emt 0:00:21]} 2. Nc3 {[%emt 0:01:02]} e5 {[%emt 0:00:21]} 3. g3 {[%emt 0:00:34]} Bb4 {[%emt 0:00:48]} 4. e4 {[%emt 0:01:38]} O-O {[%emt 0:00:57]} 5. Nge2 {[%emt 0:01:26]} Nc6 {[%emt 0:04:51]} 6. Bg2 {[%emt 0:01:02]} a5 {[%emt 0:01:05]} 7. O-O {[%emt 0:02:01]} d6 {[%emt 0:00:18]} 8. h3 {[%emt 0:00:56]} Re8 {[%emt 0:13:09]} 9. d3 {[%emt 0:02:25]} Bc5 {[%emt 0:08:59]} 10. Kh2 {[%emt 0:02:59]} Nd4 {[%emt 0:02:28]} 11. Be3 {[%emt 0:05:57]} Nxe2 {[%emt 0:00:15]} 12. Qxe2 {[%emt 0:00:11]} Bxe3 {[%emt 0:00:15]} 13. Qxe3 {[%emt 0:00:58]} Nd7 {[%emt 0:02:30]} 14. f4 {[%emt 0:02:10]} c6 {[%emt 0:00:27]} 15. d4 {[%emt 0:03:17]} Qb6 {[%emt 0:00:32]} 16. fxe5 {[%emt 0:00:32]} dxe5 {[%emt 0:00:02]} 17. Qf2 {[%emt 0:00:15]} f6 {[%emt 0:00:18]} 18. d5 {[%emt 0:00:23]} Qxf2 {[%emt 0:00:07]} 19. Rxf2 {[%emt 0:00:02]} Nc5 {[%emt 0:00:24]} 20. Rd1 {[%emt 0:03:26]} Kf7 {[%emt 0:01:24]} 21. h4 {[%emt 0:07:45]} Bg4 {[%emt 0:01:07]} 22. Bf3 {[%emt 0:02:28]} Bd7 {[%emt 0:07:46]} 23. Rfd2 {[%emt 0:01:40]} Ke7 {[%emt 0:00:40]} 24. g4 {[%emt 0:03:26]} Rad8 {[%emt 0:00:56]} 25. b3 {[%emt 0:03:24]} Bc8 {[%emt 0:01:40]} 26. Rb1 {[%emt 0:07:39]} Ne6 {[%emt 0:00:30]} 27. Ne2 {[%emt 0:01:53]} c5 {[%emt 0:00:43]} 28. Bg2 {[%emt 0:01:38]} Nd4 {[%emt 0:00:10]} 29. Nxd4 {[%emt 0:03:17]} exd4 {[%emt 0:00:03]} 30. Kg3 {[%emt 0:00:16]} Kd6 {[%emt 0:00:10]} 31. a3 {[%emt 0:01:37]} b6 {[%emt 0:10:44]} 32. b4 {[%emt 0:07:03]} axb4 {[%emt 0:00:06]} 33. axb4 {[%emt 0:00:00]} Ba6 {[%emt 0:00:12]} 34. b5 {[%emt 0:05:46]} Bb7 {[%emt 0:00:03]} 35. Ra1 {[%emt 0:00:06]} Ra8 {[%emt 0:00:41]} 36. Rda2 {[%emt 0:00:01]} Rxa2 {[%emt 0:00:42]} 37. Rxa2 {[%emt 0:00:01]} Ra8 {[%emt 0:00:02]} 38. Rxa8 {[%emt 0:00:19]} Bxa8 {[%emt 0:00:02]} 39. Kf4 {[%emt 0:00:38]} Bb7 {[%emt 0:00:03]} 40. g5 {[%emt 0:00:00]} Bc8 {[%emt 0:00:00]} 41. gxf6 {[%emt 0:05:47]} gxf6 {[%emt 0:00:11]} 42. Bf1 {[%emt 0:01:25]} h6 {[%emt 0:00:17]} 43. Be2 {[%emt 0:00:49]} Bh3 {[%emt 0:00:20]} 44. Kg3 {[%emt 0:00:38]} Bd7 {[%emt 0:00:06]} 45. Kf4 {[%emt 0:00:03]} 1/2-1/2

[Event "VII Totalizator Sportowy 2022"]
[Site "Bydgoszcz"]
[Date "2022.06.30"]
[Round "6.20"]
[White "Rog, Bartlomiej"]
[Black "Kacprzak, Karol"]
[Result "1/2-1/2"]
[ECO "B10"]
[WhiteElo "2055"]
[BlackElo "2200"]
[Annotator "NA RC"]
[PlyCount "51"]
[EventDate "2022.06.25"]
[EventType "swiss"]
[EventCountry "POL"]
[SourceTitle "playchess.com"]
[Source "ChessBase"]
[SourceQuality "1"]
[TimeControl "40/5400+30:1800+30"]

1. e4 {[%emt 0:00:04]} c6 {[%emt 0:00:04]} 2. Nc3 {[%emt 0:00:46]} d5 {[%emt 0:00:07]} 3. Nf3 {[%emt 0:00:19]} dxe4 {[%emt 0:00:32]} 4. Nxe4 {[%emt 0:00:11]} Nf6 {[%emt 0:00:08]} 5. Qe2 {[%emt 0:00:07]} Nxe4 {[%emt 0:00:53]} 6. Qxe4 {[%emt 0:00:10]} Nd7 {[%emt 0:00:17]} 7. Bc4 {[%emt 0:00:09]} Nf6 {[%emt 0:00:27]} 8. Ne5 {[%emt 0:00:08]} e6 {[%emt 0:00:12]} 9. Qe2 {[%emt 0:00:09]} b5 {[%emt 0:03:00]} 10. Bb3 {[%emt 0:03:06]} Qb6 {[%emt 0:29:49]} 11. a4 {[%emt 0:01:16]} Bd6 {[%emt 0:05:27]} 12. O-O {[%emt 0:13:39]} O-O {[%emt 0:06:10]} 13. Rd1 {[%emt 0:13:15]} Bxe5 {[%emt 0:09:47]} 14. Qxe5 {[%emt 0:00:13]} Qxf2+ {[%emt 0:00:03]} 15. Kxf2 {[%emt 0:01:04]} Ng4+ {[%emt 0:00:02]} 16. Kg1 {[%emt 0:02:13]} Nxe5 {[%emt 0:00:05]} 17. d4 {[%emt 0:00:04]} Nd7 {[%emt 0:05:49]} 18. Be3 {[%emt 0:13:53]} Nb6 {[%emt 0:11:29]} 19. axb5 {[%emt 0:02:25]} cxb5 {[%emt 0:00:04]} 20. d5 {[%emt 0:00:22]} Nxd5 {[%emt 0:00:59]} 21. Rxd5 {[%emt 0:08:17]} exd5 {[%emt 0:00:10]} 22. Bxd5 {[%emt 0:00:06]} Bf5 {[%emt 0:02:38]} 23. Bxa8 {[%emt 0:00:09]} Rxa8 {[%emt 0:00:04]} 24. Rxa7 {[%emt 0:00:07]} Rxa7 {[%emt 0:02:37]} 25. Bxa7 {[%emt 0:00:07]} Bxc2 {[%emt 0:00:04]} 26. Kf2 {[%emt 0:00:24]} 1/2-1/2

[Event "VII Totalizator Sportowy 2022"]
[Site "Bydgoszcz"]
[Date "2022.06.30"]
[Round "6.21"]
[White "Malczyk, Radoslaw"]
[Black "Laux, Dominik"]
[Result "0-1"]
[ECO "D00"]
[WhiteElo "2067"]
[BlackElo "2263"]
[Annotator "NA RC"]
[PlyCount "126"]
[EventDate "2022.06.25"]
[EventType "swiss"]
[EventCountry "POL"]
[SourceTitle "playchess.com"]
[Source "ChessBase"]
[SourceQuality "1"]
[TimeControl "40/5400+30:1800+30"]

1. d4 {[%emt 0:00:30]} d5 {[%emt 0:02:21]} 2. Nc3 {[%emt 0:00:07]} Nf6 {[%emt 0:00:31]} 3. Bf4 {[%emt 0:00:11]} c5 {[%emt 0:00:32]} 4. e3 {[%emt 0:00:28]} Bg4 {[%emt 0:00:38]} 5. f3 {[%emt 0:00:50]} Bd7 {[%emt 0:00:05]} 6. dxc5 {[%emt 0:03:12]} Nc6 {[%emt 0:07:15]} 7. Nxd5 {[%emt 0:00:51]} e5 {[%emt 0:01:09]} 8. Bg5 {[%emt 0:02:50]} Qa5+ {[%emt 0:05:23]} 9. c3 {[%emt 0:00:23]} Nxd5 {[%emt 0:01:52]} 10. Qxd5 {[%emt 0:00:33]} Bxc5 {[%emt 0:01:06]} 11. Bc4 {[%emt 0:04:27]} Be6 {[%emt 0:03:57]} 12. Qd3 {[%emt 0:00:36]} Bxc4 {[%emt 0:01:47]} 13. Qxc4 {[%emt 0:00:53]} h6 {[%emt 0:01:43]} 14. Bh4 $15 {[%emt 0:06:04]} Bxe3 {[%emt 0:00:24]} 15. Nh3 {[%emt 0:01:04]} O-O {[%emt 0:06:30]} 16. Bf2 {[%emt 0:00:23]} Bxf2+ {[%emt 0:02:33]} 17. Nxf2 {[%emt 0:00:13]} Rad8 {[%emt 0:02:19]} 18. O-O {[%emt 0:01:10]} Rd2 {[%emt 0:01:29]} 19. Qb3 {[%emt 0:00:17]} Qc5 {[%emt 0:05:33]} 20. Rad1 {[%emt 0:03:04]} Rfd8 {[%emt 0:01:45]} 21. Rxd2 {[%emt 0:00:19]} Rxd2 {[%emt 0:00:13]} 22. Qxb7 {[%emt 0:00:19]} e4 {[%emt 0:11:29]} 23. b4 {[%emt 0:02:39]} Qxc3 {[%emt 0:01:29]} 24. Nxe4 {[%emt 0:00:37]} Qd4+ {[%emt 0:02:13]} 25. Kh1 {[%emt 0:04:11]} Rd1 {[%emt 0:00:53]} 26. Ng3 {[%emt 0:00:24]} Nxb4 {[%emt 0:06:34]} 27. Qc8+ {[%emt 0:00:30]} Qd8 {[%emt 0:00:42]} 28. Qxd8+ {[%emt 0:03:17]} Rxd8 {[%emt 0:00:03]} 29. a4 {[%emt 0:00:17]} Rd2 {[%emt 0:01:44]} 30. Ne4 {[%emt 0:01:29]} Ra2 {[%emt 0:00:39]} 31. Nc5 {[%emt 0:00:14]} Nd5 {[%emt 0:00:39]} 32. g3 {[%emt 0:00:55]} Nc3 {[%emt 0:02:50]} 33. Re1 {[%emt 0:01:25]} Nxa4 {[%emt 0:00:05]} 34. Re8+ {[%emt 0:01:07]} Kh7 {[%emt 0:00:04]} 35. Nd7 {[%emt 0:00:13]} g5 {[%emt 0:02:49]} 36. Nf6+ {[%emt 0:09:29]} Kg6 {[%emt 0:02:33]} 37. Ng4 {[%emt 0:00:20]} Kg7 {[%emt 0:01:43]} 38. Kg1 {[%emt 0:01:21]} Nc3 {[%emt 0:03:40]} 39. Rd8 {[%emt 0:00:42]} a5 {[%emt 0:01:16]} 40. Rd7 {[%emt 0:00:34]} a4 {[%emt 0:00:00]} 41. Ne5 {[%emt 0:01:36]} a3 {[%emt 0:01:41]} 42. Rxf7+ {[%emt 0:00:07]} Kg8 {[%emt 0:00:22]} 43. Ra7 {[%emt 0:01:16]} Ra1+ {[%emt 0:00:21]} 44. Kg2 {[%emt 0:01:10]} a2 {[%emt 0:00:09]} 45. Ra8+ {[%emt 0:00:26]} Kg7 {[%emt 0:00:11]} 46. Ra7+ {[%emt 0:00:08]} Kf6 {[%emt 0:04:37]} 47. Nd7+ {[%emt 0:00:22]} Kg6 {[%emt 0:02:20]} 48. Nf8+ {[%emt 0:03:08]} Kf5 {[%emt 0:06:06]} 49. Ra5+ {[%emt 0:02:01]} Kf6 {[%emt 0:00:07]} 50. Nd7+ {[%emt 0:00:39]} Kg7 {[%emt 0:00:41]} 51. Ra7 {[%emt 0:00:14]} Rd1 {[%emt 0:01:59]} 52. Nc5+ {[%emt 0:00:11]} Kf6 {[%emt 0:01:31]} 53. Ne4+ {[%emt 0:01:15]} Nxe4 {[%emt 0:00:11]} 54. Rxa2 {[%emt 0:00:15]} Rd2+ {[%emt 0:00:07]} 55. Rxd2 {[%emt 0:00:05]} Nxd2 {[%emt 0:00:05]} 56. f4 {[%emt 0:00:09]} gxf4 {[%emt 0:00:44]} 57. gxf4 {[%emt 0:00:08]} Kf5 {[%emt 0:00:14]} 58. Kg3 {[%emt 0:00:06]} Ne4+ {[%emt 0:01:18]} 59. Kh4 {[%emt 0:00:10]} Nf6 {[%emt 0:00:08]} 60. Kg3 {[%emt 0:00:06]} Nh5+ {[%emt 0:00:26]} 61. Kh4 {[%emt 0:00:14]} Nxf4 {[%emt 0:01:14]} 62. h3 {[%emt 0:00:09]} h5 {[%emt 0:00:14]} 63. Kg3 {[%emt 0:00:07]} Ke5 0-1

[Event "VII Totalizator Sportowy 2022"]
[Site "Bydgoszcz"]
[Date "2022.06.30"]
[Round "6.22"]
[White "Prieb, Robert"]
[Black "Kujawski, Adam"]
[Result "1-0"]
[ECO "A61"]
[WhiteElo "2034"]
[BlackElo "2246"]
[Annotator "NA RC"]
[PlyCount "107"]
[EventDate "2022.06.25"]
[EventType "swiss"]
[EventCountry "POL"]
[SourceTitle "playchess.com"]
[Source "ChessBase"]
[SourceQuality "1"]
[TimeControl "40/5400+30:1800+30"]

1. d4 {[%emt 0:00:06]} Nf6 {[%emt 0:00:30]} 2. c4 {[%emt 0:00:18]} e6 {[%emt 0:00:06]} 3. Nf3 {[%emt 0:00:17]} c5 {[%emt 0:00:08]} 4. d5 {[%emt 0:00:22]} exd5 $16 {[%emt 0:00:05]} 5. cxd5 {[%emt 0:00:11]} d6 {[%emt 0:00:05]} 6. Nc3 {[%emt 0:00:29]} g6 {[%emt 0:00:11]} 7. e4 {[%emt 0:00:23]} Bg7 {[%emt 0:00:09]} 8. h3 {[%emt 0:00:28]} O-O {[%emt 0:00:11]} 9. Bd3 {[%emt 0:00:16]} b5 {[%emt 0:01:35]} 10. Nxb5 {[%emt 0:00:29]} Re8 {[%emt 0:00:37]} 11. O-O {[%emt 0:00:25]} Nxe4 {[%emt 0:00:14]} 12. Re1 {[%emt 0:00:39]} a6 {[%emt 0:01:31]} 13. Nc3 {[%emt 0:00:52]} Nxc3 {[%emt 0:01:29]} 14. Rxe8+ {[%emt 0:00:25]} Qxe8 {[%emt 0:00:07]} 15. bxc3 {[%emt 0:00:11]} Bxc3 {[%emt 0:01:15]} 16. Rb1 {[%emt 0:00:08]} a5 {[%emt 0:18:41]} 17. Rb6 {[%emt 0:16:27]} Na6 {[%emt 0:10:10]} 18. Bxa6 {[%emt 0:09:09]} Rxa6 {[%emt 0:03:10]} 19. Rb8 {[%emt 0:01:06]} Bg7 {[%emt 0:13:22]} 20. Bf4 {[%emt 0:08:10]} Bf8 {[%emt 0:09:40]} 21. Qe1 {[%emt 0:06:45]} Qd8 {[%emt 0:15:06]} 22. Nd2 {[%emt 0:08:48]} Ra7 {[%emt 0:10:02]} 23. Ne4 {[%emt 0:06:36]} Rb7 {[%emt 0:05:15]} 24. Ra8 {[%emt 0:01:51]} h6 {[%emt 0:04:15]} 25. Bd2 {[%emt 0:10:31]} f5 {[%emt 0:00:13]} 26. Bxa5 {[%emt 0:02:04]} Qe7 {[%emt 0:00:40]} 27. Nxc5 {[%emt 0:04:12]} Qxe1+ {[%emt 0:01:11]} 28. Bxe1 {[%emt 0:00:07]} Rb1 {[%emt 0:00:18]} 29. Kf1 {[%emt 0:01:35]} dxc5 {[%emt 0:01:17]} 30. Rxc8 {[%emt 0:00:08]} Rd1 {[%emt 0:01:27]} 31. d6 {[%emt 0:02:47]} Rd5 {[%emt 0:02:12]} 32. a4 {[%emt 0:01:34]} Rxd6 {[%emt 0:00:12]} 33. Rxc5 {[%emt 0:00:08]} Rd4 {[%emt 0:00:18]} 34. Ra5 {[%emt 0:00:35]} Rd1 {[%emt 0:00:09]} 35. Ra8 {[%emt 0:00:40]} Kf7 {[%emt 0:00:42]} 36. Ke2 {[%emt 0:00:50]} Ra1 {[%emt 0:00:04]} 37. a5 {[%emt 0:00:27]} Bc5 {[%emt 0:00:31]} 38. Rc8 {[%emt 0:03:07]} Ra2+ {[%emt 0:00:21]} 39. Kd3 {[%emt 0:02:51]} Bxf2 {[%emt 0:00:42]} 40. Bxf2 {[%emt 0:00:00]} Rxf2 {[%emt 0:00:00]} 41. Rc2 {[%emt 0:00:23]} Rf1 {[%emt 0:01:35]} 42. Ra2 {[%emt 0:00:22]} Rd1+ {[%emt 0:00:23]} 43. Kc4 {[%emt 0:06:39]} Rc1+ {[%emt 0:04:49]} 44. Kb3 {[%emt 0:01:16]} Rc8 {[%emt 0:19:33]} 45. a6 {[%emt 0:01:52]} Kf6 {[%emt 0:00:37]} 46. a7 {[%emt 0:00:26]} Ra8 {[%emt 0:00:04]} 47. Kc4 {[%emt 0:00:39]} Kg5 {[%emt 0:01:26]} 48. Kc5 {[%emt 0:01:24]} f4 {[%emt 0:02:28]} 49. Ra3 {[%emt 0:01:25]} f3 {[%emt 0:01:42]} 50. gxf3 {[%emt 0:00:11]} Kf4 {[%emt 0:03:53]} 51. Kb6 {[%emt 0:01:01]} g5 {[%emt 0:00:37]} 52. Kb7 {[%emt 0:00:40]} Rxa7+ {[%emt 0:00:05]} 53. Kxa7 {[%emt 0:00:09]} Kg3 {[%emt 0:00:29]} 54. Ra6 {[%emt 0:00:24]} 1-0

[Event "VII Totalizator Sportowy 2022"]
[Site "Bydgoszcz"]
[Date "2022.06.30"]
[Round "6.23"]
[White "Sliwicki, Damian"]
[Black "Zalega, Maciej"]
[Result "0-1"]
[ECO "A45"]
[WhiteElo "2168"]
[BlackElo "2051"]
[Annotator "NA RC"]
[PlyCount "100"]
[EventDate "2022.06.25"]
[EventType "swiss"]
[EventCountry "POL"]
[SourceTitle "playchess.com"]
[Source "ChessBase"]
[SourceQuality "1"]
[TimeControl "40/5400+30:1800+30"]

1. d4 {[%emt 0:05:18]} Nf6 {[%emt 0:00:11]} 2. Nc3 {[%emt 0:00:03]} d5 {[%emt 0:00:13]} 3. Bf4 {[%emt 0:00:05]} c6 {[%emt 0:00:40]} 4. f3 {[%emt 0:00:06]} e6 {[%emt 0:03:56]} 5. Qd2 {[%emt 0:00:26]} Bb4 {[%emt 0:02:56]} 6. g4 {[%emt 0:01:50]} O-O {[%emt 0:09:24]} 7. e3 {[%emt 0:00:35]} Re8 {[%emt 0:04:24]} 8. Nge2 {[%emt 0:02:40]} c5 {[%emt 0:04:09]} 9. Bg2 {[%emt 0:05:46]} Nc6 {[%emt 0:01:55]} 10. a3 {[%emt 0:04:43]} cxd4 {[%emt 0:05:14]} 11. exd4 {[%emt 0:00:17]} Bxc3 {[%emt 0:03:28]} 12. Qxc3 {[%emt 0:03:31]} Qb6 {[%emt 0:04:46]} 13. b3 {[%emt 0:09:45]} Bd7 {[%emt 0:02:35]} 14. Bg5 {[%emt 0:08:27]} e5 {[%emt 0:05:48]} 15. Bxf6 {[%emt 0:00:06]} Nxd4 {[%emt 0:02:51]} 16. Qd2 {[%emt 0:10:03]} Rac8 {[%emt 0:10:26]} 17. Rc1 {[%emt 0:20:52]} Qxf6 {[%emt 0:00:45]} 18. O-O {[%emt 0:01:21]} Bb5 {[%emt 0:01:50]} 19. Nxd4 {[%emt 0:02:17]} Bxf1 {[%emt 0:02:27]} 20. Rxf1 {[%emt 0:03:12]} exd4 {[%emt 0:00:52]} 21. Rf2 {[%emt 0:01:55]} Re3 {[%emt 0:05:39]} 22. Qa5 {[%emt 0:05:04]} d3 {[%emt 0:14:44]} 23. cxd3 {[%emt 0:00:26]} Qd4 {[%emt 0:01:15]} 24. Kh1 {[%emt 0:07:11]} b6 {[%emt 0:03:01]} 25. Qa6 {[%emt 0:03:03]} Rc1+ {[%emt 0:06:44]} 26. Bf1 {[%emt 0:00:01]} Qxd3 {[%emt 0:00:58]} 27. Kg2 {[%emt 0:04:24]} Qxa6 {[%emt 0:00:17]} 28. Bxa6 {[%emt 0:00:01]} Rxb3 {[%emt 0:00:31]} 29. Rd2 {[%emt 0:00:07]} Rc5 {[%emt 0:00:46]} 30. Bb7 {[%emt 0:00:20]} Rxa3 {[%emt 0:01:25]} 31. Bxd5 {[%emt 0:00:03]} Rxd5 {[%emt 0:00:37]} 32. Rxd5 {[%emt 0:00:00]} g6 {[%emt 0:00:03]} 33. f4 {[%emt 0:00:14]} Kg7 {[%emt 0:00:33]} 34. h4 {[%emt 0:00:20]} Ra5 {[%emt 0:00:33]} 35. Rd6 {[%emt 0:01:22]} h5 {[%emt 0:00:27]} 36. f5 {[%emt 0:01:12]} gxf5 {[%emt 0:01:03]} 37. gxh5 {[%emt 0:00:01]} Ra4 {[%emt 0:00:50]} 38. Kg3 {[%emt 0:00:35]} b5 {[%emt 0:00:27]} 39. h6+ {[%emt 0:00:08]} Kh7 {[%emt 0:00:10]} 40. Rf6 {[%emt 0:00:00]} b4 {[%emt 0:00:00]} 41. Rxf7+ {[%emt 0:11:52]} Kxh6 {[%emt 0:01:16]} 42. Rxf5 {[%emt 0:01:01]} Ra6 {[%emt 0:03:29]} 43. Rf1 {[%emt 0:08:45]} Rb6 {[%emt 0:01:20]} 44. Ra1 {[%emt 0:01:09]} b3 {[%emt 0:00:12]} 45. Kf4 {[%emt 0:00:05]} a5 {[%emt 0:01:45]} 46. Ke3 {[%emt 0:00:04]} a4 {[%emt 0:00:34]} 47. Kd2 {[%emt 0:00:41]} a3 {[%emt 0:00:52]} 48. Re1 {[%emt 0:00:06]} b2 {[%emt 0:00:51]} 49. Kc2 {[%emt 0:00:47]} a2 {[%emt 0:00:05]} 50. h5 {[%emt 0:00:21]} b1=Q+ {[%emt 0:00:07]} 0-1